fUST/lending_fUST_20240203
["ID","MTS","AMOUNT","RATE_DAILY","PERIOD"]
[313198673,1706925040174,-506.5029093,0.00027998,2]
[313198674,1706925040183,-500.0,0.00027998,2]
[313198675,1706925040192,-500.0,0.00027998,2]
[313198676,1706925040201,-502.88051329,0.00027998,2]
[313198677,1706925040210,-1443.17,0.00027998,2]
[313198678,1706925040219,-500.0,0.00027998,2]
[313198679,1706925040228,-500.0,0.00027998,2]
[313198680,1706925040237,-506.00116456,0.00027998,2]
[313198681,1706925040247,-509.28769363,0.00027998,2]
[313198682,1706925040256,-2275.98,0.00027998,2]
[313198683,1706925040266,-500.0,0.00027998,2]
[313198684,1706925040275,-500.0,0.00027998,2]
[313198685,1706925040284,-500.0,0.00027998,2]
[313198686,1706925040294,-582.39,0.00027998,2]
[313198687,1706925040303,-500.0,0.00027998,2]
[313198688,1706925040313,-552.8,0.00027998,2]
[313198689,1706925040323,-531.53,0.00027998,2]
[313198690,1706925040332,-500.0,0.00027998,2]
[313198691,1706925040342,-155.37833457,0.00027999,2]
[313198692,1706925040351,-155.42620963,0.00027999,2]
[313198693,1706925040360,-155.51314362,0.00027999,2]
[313198694,1706925040369,-155.14883811,0.00027999,2]
[313198695,1706925040378,-155.23374485,0.00027999,2]
[313198696,1706925040388,-155.06174179,0.00027999,2]
[313198697,1706925040397,-500.0,0.00027999,2]
[313198698,1706925040406,-500.0,0.00027999,2]
[313198699,1706925040415,-506.76673459,0.00027999,2]
[313198700,1706925040424,-507.40403678,0.00027999,2]
[313198701,1706925040433,-500.0,0.00027999,2]
[313198702,1706925040442,-540.98142186,0.00027999,2]
[313198703,1706925040451,-13132.07128254,0.00028,2]
[313198740,1706925044530,-500.0,0.00027997,2]
[313198742,1706925044540,-364.7499,0.00027999,2]
[313198745,1706925044594,-276.69329589,0.00027999,2]
[313198746,1706925044604,-155.91480519,0.00027999,2]
[313198747,1706925044614,-3049.20632692,0.00028,2]
[313198748,1706925044625,-1062.632125,0.00028,2]
[313198750,1706925044637,-521.1292128,0.00028,2]
[313198752,1706925044649,-600.0,0.00028,2]
[313198754,1706925044661,-4128.95910025,0.00028,2]
[313198757,1706925044674,-4703.28570638,0.00028,2]
[313198760,1706925044685,-566.81142176,0.00028,2]
[313198788,1706925046594,-419.95200853,0.0002799,3]
[313198789,1706925046608,-455.28,0.0002799,3]
[313198817,1706925264448,10000.0,0.00021,2]
[313198841,1706925868887,178037.85069389,0.00029,30]
[313198898,1706926232685,-155.03255684,0.00020858,2]
[313198901,1706926232697,-901.59709922,0.00020859,2]
[313199391,1706926244606,-680.25587459,0.00020857,2]
[313199392,1706926244616,-153.99392812,0.00020859,2]
[313199393,1706926244627,-145.12085196,0.00020859,2]
[313199394,1706926244637,-243.65021218,0.00020859,2]
[313199395,1706926244646,-164.3230754,0.00020865,2]
[313199396,1706926244656,-1791.36876621,0.00021,2]
[313199397,1706926244668,-2073.3581984,0.00021,2]
[313199398,1706926244677,-9879.64017912,0.00021,2]
[313199399,1706926244687,-194.720613,0.00021,2]
[313199400,1706926244696,-4035.82532571,0.00024544,2]
[313199401,1706926244706,-31052.93940749,0.00024545,2]
[313199402,1706926244715,-5944.17446947,0.00024545,2]
[313199403,1706926244725,-190.26052949,0.000249,2]
[313199404,1706926244734,-643.56966518,0.00025,2]
[313199405,1706926244743,-155.3088614,0.00025198,2]
[313199407,1706926244753,-756.66731672,0.000259,2]
[313199409,1706926244762,-1617.36088497,0.00027158,5]
[313199411,1706926244772,-153.0,0.00027278,2]
[313199413,1706926244781,-890.79,0.00027387,3]
[313199415,1706926244791,-155.2255562,0.00027397,2]
[313199417,1706926244801,-510.88762568,0.00027397,2]
[313199419,1706926244811,-500.0,0.00027397,2]
[313199421,1706926244820,-497.62365455,0.00027397,2]
[313199423,1706926244830,-504.34247711,0.00027397,2]
[313199425,1706926244839,-524.84294153,0.00027397,2]
[313199426,1706926244848,-525.92298484,0.00027397,2]
[313199427,1706926244857,-187.40054545,0.00027397,2]
[313199428,1706926244866,-500.0,0.00027397,2]
[313199429,1706926244875,-700.79,0.00027397,2]
[313199430,1706926244885,-493.84611396,0.00027397,2]
[313199431,1706926244897,-796.3,0.00027397,2]
[313199432,1706926244906,-500.0,0.00027397,2]
[313199433,1706926244916,-500.0,0.00027397,2]
[313199434,1706926244925,-1700.58,0.00027397,2]
[313199435,1706926244934,-535.77,0.00027397,2]
[313199436,1706926244945,-500.0,0.00027397,2]
[313199437,1706926244954,-500.0,0.00027397,2]
[313199438,1706926244963,-504.65726416,0.00027397,2]
[313199439,1706926244974,-496.87321007,0.00027397,2]
[313199440,1706926244983,-652.15,0.00027397,2]
[313199441,1706926244993,-500.0,0.00027397,2]
[313199442,1706926245002,-500.0,0.00027397,2]
[313199443,1706926245012,-500.0,0.00027397,2]
[313199444,1706926245021,-1034.81,0.00027397,2]
[313199445,1706926245030,-624.62,0.00027397,2]
[313199446,1706926245040,-546.05125587,0.00027397,2]
[313199447,1706926245049,-571.88,0.00027397,2]
[313199448,1706926245058,-500.0,0.00027397,2]
[313199449,1706926245079,-2863.49,0.00027397,2]
[313199450,1706926245089,-500.0,0.00027397,2]
[313199451,1706926245099,-3000.0,0.000275,4]
[313199452,1706926245109,-2278.0,0.0002755,4]
[313199453,1706926245118,-3000.0,0.000276,4]
[313199454,1706926245128,-500.0,0.00027671,2]
[313199455,1706926245137,-500.0,0.00027671,2]
[313199456,1706926245146,-700.79,0.00027671,2]
[313199457,1706926245156,-796.3,0.00027671,2]
[313199458,1706926245166,-500.0,0.00027671,2]
[313199459,1706926245175,-500.0,0.00027671,2]
[313199460,1706926245184,-1700.58,0.00027671,2]
[313199461,1706926245194,-535.77,0.00027671,2]
[313199462,1706926245204,-500.0,0.00027671,2]
[313199463,1706926245344,-517.85956616,0.00027671,2]
[313199464,1706926245358,-652.15,0.00027671,2]
[313199465,1706926245367,-506.4548517,0.00027671,2]
[313199466,1706926245376,-500.0,0.00027671,2]
[313199467,1706926245385,-621.06744412,0.00027671,2]
[313199468,1706926245394,-1034.81,0.00027671,2]
[313199469,1706926245403,-624.62,0.00027671,2]
[313199470,1706926245412,-571.88,0.00027671,2]
[313199471,1706926245421,-500.0,0.00027671,2]
[313199472,1706926245431,-2863.49,0.00027671,2]
[313199473,1706926245440,-473.65082678,0.00027671,2]
[313199474,1706926245449,-506.29820789,0.00027717,2]
[313199475,1706926245459,-1028.09,0.00027717,8]
[313199476,1706926245469,-500.0,0.00027717,2]
[313199477,1706926245478,-151.0,0.00027717,2]
[313199478,1706926245487,-155.174171,0.00027717,2]
[313199479,1706926245496,-152.635048,0.00027717,2]
[313199480,1706926245505,-500.0,0.00027717,2]
[313199481,1706926245515,-500.0,0.00027717,2]
[313199482,1706926245524,-505.41544656,0.00027717,2]
[313199483,1706926245533,-500.0,0.00027717,2]
[313199484,1706926245543,-500.0,0.00027717,2]
[313199485,1706926245552,-514.82696508,0.00027717,2]
[313199486,1706926245561,-1680.86,0.00027717,2]
[313199487,1706926245570,-500.0,0.00027717,2]
[313199488,1706926245579,-155.508063,0.00027717,2]
[313199489,1706926245589,-155.508063,0.00027717,2]
[313199490,1706926245598,-155.508063,0.00027717,2]
[313199491,1706926245608,-155.508063,0.00027717,2]
[313199492,1706926245617,-2606.3,0.00027717,2]
[313199493,1706926245626,-555.86495759,0.00027717,2]
[313199494,1706926245636,-151.0,0.00027718,2]
[313199495,1706926245645,-151.0,0.00027718,2]
[313199496,1706926245654,-151.0,0.00027718,2]
[313199497,1706926245663,-151.0,0.00027718,2]
[313199498,1706926245673,-155.508063,0.00027718,2]
[313199499,1706926245682,-155.508063,0.00027718,2]
[313199500,1706926245691,-21763.4231934,0.00027718,2]
[313199501,1706926245701,-3000.0,0.000278,4]
[313199502,1706926245711,-50000.0,0.00027836,5]
[313199503,1706926245720,-151.0,0.00027836,2]
[313199504,1706926245729,-155.508063,0.00027836,2]
[313199505,1706926245738,-155.508063,0.00027836,2]
[313199506,1706926245747,-451.76511987,0.000279,2]
[313199507,1706926245756,-190.26052949,0.000279,2]
[313199508,1706926245765,-429.58411291,0.000279,2]
[313199509,1706926245774,-500.0,0.00027945,2]
[313199510,1706926245783,-500.0,0.00027945,2]
[313199511,1706926245793,-700.79,0.00027945,2]
[313199512,1706926245802,-796.3,0.00027945,2]
[313199513,1706926245811,-500.0,0.00027945,2]
[313199514,1706926245821,-500.0,0.00027945,2]
[313199515,1706926245831,-1700.58,0.00027945,2]
[313199516,1706926245840,-535.77,0.00027945,2]
[313199517,1706926245849,-500.0,0.00027945,2]
[313199518,1706926245858,-652.15,0.00027945,2]
[313199519,1706926245867,-500.0,0.00027945,2]
[313199520,1706926245877,-1034.81,0.00027945,2]
[313199521,1706926245887,-624.62,0.00027945,2]
[313199523,1706926245901,-571.88,0.00027945,2]
[313199524,1706926245910,-500.0,0.00027945,2]
[313199525,1706926245919,-2863.49,0.00027945,2]
[313199526,1706926245928,-151.259518,0.00027991,2]
[313199527,1706926245938,-152.347955,0.00027991,2]
[313199528,1706926245947,-1028.09,0.00027991,8]
[313199529,1706926245957,-157.518009,0.00027991,2]
[313199530,1706926245967,-500.0,0.00027991,2]
[313199531,1706926245978,-151.0,0.00027991,2]
[313199532,1706926245987,-500.0,0.00027991,2]
[313199533,1706926245997,-500.0,0.00027991,2]
[313199534,1706926246006,-500.0,0.00027991,2]
[313199535,1706926246015,-500.0,0.00027991,2]
[313199536,1706926246025,-1680.86,0.00027991,2]
[313199537,1706926246034,-641.93068914,0.00027991,2]
[313199538,1706926246043,-155.508063,0.00027991,2]
[313199539,1706926246053,-155.508063,0.00027991,2]
[313199540,1706926246062,-2606.3,0.00027991,2]
[313199541,1706926246072,-518.70254481,0.00027997,2]
[313199542,1706926246081,-509.71176174,0.00027997,2]
[313199543,1706926246090,-500.0,0.00027997,2]
[313199544,1706926246099,-500.0,0.00027997,2]
[313199545,1706926246108,-239.32096044,0.00027997,2]
[313199546,1706926246118,-584.29598142,0.00027997,2]
[313199547,1706926246127,-236.13978811,0.00027997,2]
[313199548,1706926246136,-471.17687311,0.00027997,2]
[313199549,1706926246146,-155.508063,0.00027997,2]
[313199550,1706926246155,-155.508063,0.00027997,2]
[313199551,1706926246164,-639.6448056,0.00027998,2]
[313199552,1706926246173,-12891.35082974,0.00027998,2]
[313199553,1706926246186,-7654.60699315,0.00027998,2]
[313199554,1706926246195,-19785.66279967,0.00027998,2]
[313199555,1706926246204,-155.508063,0.00027998,2]
[313199556,1706926246214,-155.508063,0.00027998,2]
[313199557,1706926246223,-155.508063,0.00027998,2]
[313199558,1706926246233,-155.508063,0.00027998,2]
[313199559,1706926246243,-16460.34140602,0.00027999,2]
[313199560,1706926246252,-155.508063,0.00027999,2]
[313199561,1706926246261,-155.508063,0.00027999,2]
[313199562,1706926246270,-67916.34042416,0.00028,20]
[313199577,1706926246831,-13987.94748592,0.00028,20]
[313199695,1706927431830,-155.03255684,0.00021998,2]
[313199697,1706927431840,-902.67469004,0.00021999,2]
[313199703,1706927431888,-658.31347731,0.00021999,2]
[313199705,1706927431899,-24.70811866,0.00021999,2]
[313199707,1706927431908,-519.06905553,0.00022,5]
[313199709,1706927431918,-222.920703,0.00023895,2]
[313199711,1706927431927,-4035.82532571,0.00024,2]
[313199713,1706927431936,-24900.0,0.00024044,2]
[313199715,1706927431945,-3912.41223202,0.00024589,2]
[313199717,1706927431957,-167.682268,0.00024765,2]
[313199719,1706927431966,-335.29979556,0.00025889,2]
[313199721,1706927431975,-167.682268,0.0002589,2]
[313199723,1706927431984,-1440.93241464,0.000259,2]
[313199725,1706927431993,-5000.0,0.00026993,2]
[313199727,1706927432003,-167.682268,0.00027016,2]
[313199729,1706927432012,-200.0,0.00027047,15]
[313199731,1706927432021,-1224.27,0.00027387,3]
[313199733,1706927432030,-1020.23,0.00027387,3]
[313199735,1706927432040,-850.19,0.00027387,3]
[313199737,1706927432049,-708.49,0.00027387,3]
[313199739,1706927432058,-500.0,0.00027397,2]
[313199741,1706927432067,-541.02833305,0.00027397,2]
[313199743,1706927432075,-500.0,0.00027397,2]
[313199745,1706927432084,-500.0,0.00027397,2]
[313199747,1706927432094,-506.32985942,0.00027397,2]
[313199749,1706927432103,-500.0,0.00027397,2]
[313199751,1706927432112,-942.41,0.00027397,8]
[313199753,1706927432121,-500.0,0.00027397,2]
[313199755,1706927432130,-506.6234732,0.00027397,2]
[313199757,1706927432139,-511.01213052,0.00027397,2]
[313199759,1706927432148,-160.19396553,0.00027397,2]
[313199879,1706927438517,-347.94586266,0.00027397,2]
[313199880,1706927438527,-291.80688909,0.00027397,2]
[313199881,1706927438539,-214.80539601,0.00027397,2]
[313199882,1706927438548,-67.70873991,0.00027397,2]
[313199883,1706927438634,-432.29126009,0.00027397,2]
[313199884,1706927438645,-511.62248905,0.00027397,2]
[313199885,1706927438655,-515.94136236,0.00027397,2]
[313199886,1706927438665,-504.5479689,0.00027397,2]
[313199887,1706927438673,-501.75754575,0.00027397,2]
[313199888,1706927438683,-503.66532057,0.00027397,2]
[313199889,1706927438694,-500.0,0.00027397,2]
[313199890,1706927438706,-510.03971334,0.00027397,2]
[313199891,1706927438716,-500.0,0.00027397,2]
[313199892,1706927438725,-500.0,0.00027397,2]
[313199893,1706927438734,-759.03,0.00027397,2]
[313199894,1706927438744,-500.0,0.00027397,2]
[313199895,1706927438753,-1981.0,0.00027397,2]
[313199896,1706927438764,-168.06211921,0.00027397,2]
[313199897,1706927438773,-2969.56,0.00027397,2]
[313199898,1706927438783,-848.17,0.00027397,2]
[313199899,1706927438793,-590.82535091,0.00027397,2]
[313199900,1706927438803,-500.0,0.00027397,2]
[313199901,1706927438813,-500.0,0.00027397,2]
[313199902,1706927438823,-1810.01,0.00027397,2]
[313199903,1706927438834,-500.0,0.00027397,2]
[313199904,1706927438844,-614.57,0.00027397,2]
[313199905,1706927438853,-783.23,0.00027397,2]
[313199906,1706927438862,-500.0,0.00027397,2]
[313199907,1706927438871,-500.0,0.00027397,2]
[313199908,1706927438881,-500.0,0.00027397,2]
[313199909,1706927438890,-1129.89,0.00027397,2]
[313199910,1706927438899,-500.0,0.00027397,2]
[313199911,1706927438908,-7451.35,0.00027397,2]
[313199912,1706927438917,-692.38,0.00027397,2]
[313199913,1706927438927,-584.09,0.00027397,2]
[313199914,1706927438936,-646.23,0.00027397,2]
[313199915,1706927438946,-3500.96317133,0.00027438,2]
[313199916,1706927438955,-942.41,0.00027671,8]
[313199917,1706927438964,-500.0,0.00027671,2]
[313199918,1706927438974,-500.0,0.00027671,2]
[313199919,1706927438983,-500.0,0.00027671,2]
[313199920,1706927438991,-500.0,0.00027671,2]
[313199921,1706927439000,-500.0,0.00027671,2]
[313199922,1706927439009,-759.03,0.00027671,2]
[313199923,1706927439019,-500.0,0.00027671,2]
[313199924,1706927439028,-1981.0,0.00027671,2]
[313199925,1706927439037,-2969.56,0.00027671,2]
[313199926,1706927439046,-848.17,0.00027671,2]
[313199927,1706927439055,-500.0,0.00027671,2]
[313199928,1706927439064,-500.0,0.00027671,2]
[313199929,1706927439074,-1810.01,0.00027671,2]
[313199930,1706927439082,-500.0,0.00027671,2]
[313199931,1706927439092,-614.57,0.00027671,2]
[313199932,1706927439101,-783.23,0.00027671,2]
[313199933,1706927439109,-500.0,0.00027671,2]
[313199934,1706927439118,-500.0,0.00027671,2]
[313199935,1706927439128,-1129.89,0.00027671,2]
[313199936,1706927439137,-7451.35,0.00027671,2]
[313199937,1706927439146,-692.38,0.00027671,2]
[313199938,1706927439155,-584.09,0.00027671,2]
[313199939,1706927439164,-646.23,0.00027671,2]
[313199940,1706927439173,-383.99391807,0.00027736,2]
[313199941,1706927439182,-5972.0,0.000279,2]
[313199942,1706927439191,-590.41,0.00027935,3]
[313199943,1706927439200,-942.41,0.00027945,8]
[313199944,1706927439210,-500.0,0.00027945,2]
[313199945,1706927439221,-500.0,0.00027945,2]
[313199946,1706927439230,-500.0,0.00027945,2]
[313199947,1706927439239,-500.0,0.00027945,2]
[313199948,1706927439248,-500.0,0.00027945,2]
[313199949,1706927439257,-759.03,0.00027945,2]
[313199950,1706927439266,-500.0,0.00027945,2]
[313199951,1706927439275,-1981.0,0.00027945,2]
[313199952,1706927439284,-2969.56,0.00027945,2]
[313199953,1706927439295,-848.17,0.00027945,2]
[313199954,1706927439304,-151.0,0.00027945,2]
[313199955,1706927439314,-500.0,0.00027945,2]
[313199956,1706927439323,-500.0,0.00027945,2]
[313199957,1706927439333,-1810.01,0.00027945,2]
[313199958,1706927439342,-500.0,0.00027945,2]
[313199959,1706927439351,-614.57,0.00027945,2]
[313199960,1706927439360,-783.23,0.00027945,2]
[313199961,1706927439369,-500.0,0.00027945,2]
[313199962,1706927439378,-500.0,0.00027945,2]
[313199963,1706927439387,-1129.89,0.00027945,2]
[313199964,1706927439396,-7451.35,0.00027945,2]
[313199965,1706927439405,-692.38,0.00027945,2]
[313199966,1706927439414,-584.09,0.00027945,2]
[313199967,1706927439422,-646.23,0.00027945,2]
[313199968,1706927439433,-167.61,0.00027964,2]
[313199969,1706927439442,-366.62902124,0.00027996,2]
[313199970,1706927439452,-682.195853,0.00027996,2]
[313199971,1706927439462,-1203.77992919,0.00027996,2]
[313199972,1706927439471,-3991.7348344,0.00027998,2]
[313199973,1706927439480,-428.3598399,0.00027998,2]
[313199974,1706927439489,-1267.02982693,0.00027998,2]
[313199975,1706927439498,-9998.87683907,0.00027998,2]
[313199976,1706927439506,-160.016131,0.00027998,2]
[313199977,1706927439516,-4825.36396649,0.00027999,2]
[313199978,1706927439525,-7612.6208381,0.00027999,2]
[313200006,1706927445964,-420.469,0.00027997,2]
[313200060,1706928632044,-4035.82532571,0.00024628,2]
[313200061,1706928632053,-1552.64697038,0.00024629,2]
[313200062,1706928632062,-2577.63588648,0.00024629,2]
[313200063,1706928632071,-176.15460906,0.00024629,2]
[313200064,1706928632080,-335.29979556,0.00025,2]
[313200065,1706928632089,-167.174467,0.0002542,2]
[313200066,1706928632098,-219.722467,0.00025758,2]
[313200068,1706928632106,-960.62160976,0.00025898,2]
[313200070,1706928632115,-500.0,0.00027397,2]
[313200072,1706928632124,-503.32563906,0.00027397,2]
[313200074,1706928632132,-504.08404034,0.00027397,2]
[313200076,1706928632141,-353.32596457,0.00027397,2]
[313200078,1706928632150,-501.37259724,0.00027397,2]
[313200080,1706928632159,-515.99079095,0.00027397,2]
[313200082,1706928632168,-500.0,0.00027397,2]
[313200084,1706928632177,-506.75800662,0.00027397,2]
[313200085,1706928632186,-500.0,0.00027397,2]
[313200087,1706928632195,-1410.00239002,0.00027438,2]
[313200089,1706928632204,-6574.36,0.00027669,2]
[313200091,1706928632214,-742.15,0.00027669,2]
[313200092,1706928632223,-500.0,0.00027669,2]
[313200093,1706928632232,-500.0,0.00027669,2]
[313200094,1706928632241,-500.0,0.00027669,2]
[313200095,1706928632250,-1583.76,0.00027669,2]
[313200096,1706928632259,-537.75,0.00027669,2]
[313200097,1706928632268,-500.0,0.00027669,2]
[313200098,1706928632277,-500.0,0.00027669,2]
[313200099,1706928632286,-988.66,0.00027669,2]
[313200100,1706928632295,-506.31384961,0.00027669,2]
[313200101,1706928632303,-539.12,0.00027669,2]
[313200102,1706928632312,-500.0,0.00027669,2]
[313200103,1706928632321,-500.0,0.00027669,2]
[313200104,1706928632330,-500.0,0.0002767,2]
[313200105,1706928632339,-500.0,0.0002767,2]
[313200106,1706928632348,-500.0,0.0002767,2]
[313200107,1706928632357,-513.36876796,0.0002767,2]
[313200108,1706928632366,-500.0,0.0002767,2]
[313200109,1706928632375,-505.8829702,0.0002767,2]
[313200110,1706928632384,-500.0,0.0002767,2]
[313200111,1706928632393,-500.0,0.0002767,2]
[313200112,1706928632403,-500.0,0.0002767,2]
[313200113,1706928632412,-637.65,0.0002767,2]
[313200114,1706928632421,-589.7,0.0002767,2]
[313200115,1706928632430,-500.0,0.0002767,2]
[313200116,1706928632439,-500.0,0.0002767,2]
[313200117,1706928632448,-500.0,0.0002767,2]
[313200118,1706928632457,-664.15,0.0002767,2]
[313200119,1706928632466,-1733.38,0.0002767,2]
[313200120,1706928632475,-2655.49,0.0002767,2]
[313200121,1706928632484,-685.32,0.0002767,2]
[313200122,1706928632492,-500.0,0.00027671,2]
[313200123,1706928632501,-500.0,0.00027671,2]
[313200124,1706928632511,-199.6142226,0.00027671,2]
[313200125,1706928632520,-252.8446631,0.00027671,2]
[313200126,1706928632529,-153.0,0.00027671,2]
[313200127,1706928632540,-199.7424242,0.00027671,2]
[313200128,1706928632549,-306.0,0.00027671,2]
[313200129,1706928632558,-153.0,0.00027671,2]
[313200130,1706928632567,-199.7424242,0.00027671,2]
[313200131,1706928632576,-153.0,0.00027671,2]
[313200132,1706928632586,-199.7424242,0.00027671,2]
[313200133,1706928632595,-199.7424242,0.00027671,2]
[313200134,1706928632604,-199.1014162,0.00027671,2]
[313200135,1706928632614,-153.0,0.00027671,2]
[313200136,1706928632626,-153.0,0.00027671,2]
[313200137,1706928632636,-153.0,0.00027671,2]
[313200138,1706928632646,-153.0,0.00027671,2]
[313200139,1706928632655,-153.0,0.00027671,2]
[313200140,1706928632665,-153.0,0.00027671,2]
[313200141,1706928632674,-153.0,0.00027671,2]
[313200142,1706928632682,-168.1555127,0.000277,2]
[313200143,1706928632691,-6574.36,0.00027943,2]
[313200144,1706928632700,-742.15,0.00027943,2]
[313200145,1706928632710,-500.0,0.00027943,2]
[313200146,1706928632720,-500.0,0.00027943,2]
[313200147,1706928632729,-500.0,0.00027943,2]
[313200148,1706928632738,-1583.76,0.00027943,2]
[313200149,1706928632847,-537.75,0.00027943,2]
[313200150,1706928632857,-500.0,0.00027943,2]
[313200151,1706928632866,-500.0,0.00027943,2]
[313200152,1706928632875,-988.66,0.00027943,2]
[313200153,1706928632883,-539.12,0.00027943,2]
[313200154,1706928632893,-500.0,0.00027944,2]
[313200155,1706928632903,-130.97506097,0.00027944,2]
[313200156,1706928632916,-369.02493903,0.00027944,2]
[313200157,1706928632925,-104.09468546,0.00027944,2]
[313200171,1706928638238,-565.13,0.00027669,2]
[313200172,1706928638248,-565.13,0.00027943,2]
[313200173,1706928638257,-408.00404932,0.00027944,2]
[313200174,1706928638266,-45.22786054,0.00027944,2]
[313200240,1706928643097,-454.77213946,0.00027944,2]
[313200242,1706928643107,-373.63753868,0.00027944,2]
[313200248,1706928643152,-126.36246132,0.00027944,2]
[313200251,1706928643161,-416.19826531,0.00027944,2]
[313200676,1706929838435,-233.44340346,0.00021,2]
[313200678,1706929838444,-118.29710912,0.00021,2]
[313200683,1706929838491,-12301.16129593,0.00021,2]
[313200685,1706929838500,-413.96289594,0.00024667,2]
[313200687,1706929838509,-768.5978404,0.00024667,2]
[313200689,1706929838518,-413.27096401,0.0002468,2]
[313200691,1706929838527,-335.29979556,0.00025,2]
[313200692,1706929838535,-167.174467,0.00025312,2]
[313200693,1706929838544,-4035.82532571,0.00025842,2]
[313200694,1706929838553,-640.4144065,0.00025843,2]
[313200695,1706929838561,-169.6335704,0.00026305,2]
[313200696,1706929838570,-500.0,0.00027669,2]
[313200697,1706929838578,-500.0,0.00027669,2]
[313200698,1706929838587,-502.64083218,0.00027669,2]
[313200699,1706929838596,-500.0,0.00027669,2]
[313200700,1706929838605,-312.5134984,0.000277,2]
[313200701,1706929838613,-1451.78,0.00027941,2]
[313200702,1706929838622,-906.27,0.00027941,2]
[313200703,1706929838631,-500.0,0.00027941,2]
[313200704,1706929838640,-6026.5,0.00027941,2]
[313200705,1706929838648,-500.0,0.00027942,2]
[313200706,1706929838657,-272.85212487,0.00027942,2]
[313200707,1706929838667,-501.99061113,0.00027942,2]
[313200708,1706929838676,-500.0,0.00027942,2]
[313200709,1706929838685,-502.3511792,0.00027942,2]
[313200710,1706929838694,-502.31949854,0.00027942,2]
[313200712,1706929838703,-680.3,0.00027942,2]
[313200714,1706929838712,-636.48,0.00027942,2]
[313200716,1706929838721,-500.0,0.00027942,2]
[313200718,1706929838729,-500.0,0.00027942,2]
[313200720,1706929838739,-500.0,0.00027942,2]
[313200722,1706929838748,-1661.16,0.00027942,2]
[313200724,1706929838757,-500.0,0.00027942,2]
[313200726,1706929838766,-500.0,0.00027942,2]
[313200728,1706929838774,-2544.85,0.00027942,2]
[313200730,1706929838784,-356.46475624,0.00027942,2]
[313200732,1706929838792,-677.6,0.00027942,2]
[313200734,1706929838801,-611.08,0.00027942,2]
[313200736,1706929838811,-500.0,0.00027942,2]
[313200738,1706929838820,-538.87,0.00027942,2]
[313200740,1706929838828,-500.0,0.00027942,2]
[313200741,1706929838837,-500.0,0.00027942,2]
[313200743,1706929838846,-500.0,0.00027943,2]
[313200745,1706929838855,-155.02480397,0.00027944,2]
[313200748,1706929838866,-765.43990857,0.00027944,2]
[313200749,1706929838875,-500.0,0.00027989,2]
[313200751,1706929838884,-500.0,0.00027989,2]
[313200754,1706929838898,-1405.51,0.0002799,3]
[313200756,1706929838907,-220.44027765,0.00027997,2]
[313200758,1706929838916,-254.30727644,0.00027998,2]
[313200760,1706929838926,-425.40201231,0.00027998,2]
[313200762,1706929838935,-166.64520915,0.00027998,2]
[313200763,1706929838944,-383.43926243,0.00027999,2]
[313200766,1706929838954,-4497.67760339,0.00027999,2]
[313200768,1706929838965,-4729.67246709,0.00028,20]
[313200770,1706929838975,-5870.9025253,0.00028,7]
[313200771,1706929838986,-155.15577077,0.00028,2]
[313200773,1706929838997,-155.895581,0.00028,2]
[313200774,1706929839006,-155.2367782,0.00028,2]
[313200776,1706929839015,-51064.59102805,0.00028,2]
[313200778,1706929839024,-2004.0,0.00028,2]
[313200780,1706929839033,-153.7149124,0.00028,2]
[313200781,1706929839042,-308.5438649,0.00028,2]
[313200782,1706929839051,-53502.73434597,0.00028,2]